[Event "Late-Titled-Tuesday-Blitz-September-19-2023"]
[Site "Chess.com"]
[Date "2023.09.19"]
[Round "6"]
[White "Quattroporte300"]
[Black "CFalcons8"]
[Result "1-0"]
[WhiteElo "2397"]
[BlackElo "2251"]
[TimeControl "180+1"]
[EndTime "15:03:09 PDT"]
[Termination "Quattroporte300 won on time"]

1. e4 {[%clk 0:02:57.5]} 1... e5 {[%clk 0:02:43.6]} 2. Nf3 {[%clk 0:02:55.7]}
2... Nc6 {[%clk 0:02:38.2]} 3. Bc4 {[%clk 0:02:56]} 3... Nf6 {[%clk 0:02:36.7]}
4. d3 {[%clk 0:02:56.5]} 4... h6 {[%clk 0:02:35.7]} 5. c3 {[%clk 0:02:56]} 5...
Bc5 {[%clk 0:02:33]} 6. O-O {[%clk 0:02:54.1]} 6... d6 {[%clk 0:02:32.6]} 7.
Nbd2 {[%clk 0:02:52.1]} 7... O-O {[%clk 0:02:29.4]} 8. h3 {[%clk 0:02:51.4]}
8... a6 {[%clk 0:02:27.2]} 9. Bb3 {[%clk 0:02:49.7]} 9... b5 {[%clk 0:02:25.5]}
10. Re1 {[%clk 0:02:49.8]} 10... Bb7 {[%clk 0:02:23]} 11. Nf1 {[%clk 0:02:50]}
11... Bb6 {[%clk 0:02:06.4]} 12. Ng3 {[%clk 0:02:46.7]} 12... Ne7 {[%clk
0:01:57.2]} 13. d4 {[%clk 0:02:38.9]} 13... Ng6 {[%clk 0:01:52]} 14. Nf5 {[%clk
0:02:32.9]} 14... Bc8 {[%clk 0:01:45.7]} 15. Nh2 {[%clk 0:02:16.1]} 15... Bb7
{[%clk 0:01:44]} 16. Qf3 {[%clk 0:02:13.3]} 16... c5 {[%clk 0:01:35]} 17. d5
{[%clk 0:02:09.7]} 17... c4 {[%clk 0:01:27.8]} 18. Bc2 {[%clk 0:02:08.8]} 18...
Nh7 {[%clk 0:01:20.5]} 19. Qg3 {[%clk 0:01:59]} 19... Kh8 {[%clk 0:00:49.9]} 20.
h4 {[%clk 0:01:56.5]} 20... Qf6 {[%clk 0:00:47.2]} 21. Ng4 {[%clk 0:01:46.8]}
21... Qd8 {[%clk 0:00:43.9]} 22. h5 {[%clk 0:01:46.9]} 22... Ne7 {[%clk
0:00:42.4]} 23. Ngxh6 {[%clk 0:01:41]} 23... Nxf5 {[%clk 0:00:33.1]} 24. Nxf5
{[%clk 0:01:40.2]} 24... Qf6 {[%clk 0:00:32.9]} 25. Be3 {[%clk 0:01:31.3]} 25...
Bxe3 {[%clk 0:00:30]} 26. Rxe3 {[%clk 0:01:30.3]} 26... Ng5 {[%clk 0:00:15.2]}
27. Nxd6 {[%clk 0:01:22.5]} 27... Qxd6 {[%clk 0:00:03]} 28. Qxg5 {[%clk
0:01:20.5]} 1-0

[Event "Late-Titled-Tuesday-Blitz-September-19-2023"]
[Site "Chess.com"]
[Date "2023.09.19"]
[Round "6"]
[White "floplover"]
[Black "dorpato"]
[Result "1-0"]
[WhiteElo "2298"]
[BlackElo "2009"]
[TimeControl "180+1"]
[EndTime "15:03:16 PDT"]
[Termination "floplover won by resignation"]

1. e4 {[%clk 0:03:00.9]} 1... c5 {[%clk 0:02:54.7]} 2. Nf3 {[%clk 0:03:01.3]}
2... d6 {[%clk 0:02:53.3]} 3. d4 {[%clk 0:03:01.2]} 3... cxd4 {[%clk 0:02:54.2]}
4. Nxd4 {[%clk 0:03:01.5]} 4... Nf6 {[%clk 0:02:53.2]} 5. Nc3 {[%clk 0:03:01.8]}
5... a6 {[%clk 0:02:53.3]} 6. Be2 {[%clk 0:02:58.2]} 6... e5 {[%clk 0:02:42.8]}
7. Nb3 {[%clk 0:02:57.6]} 7... Be7 {[%clk 0:02:42.1]} 8. O-O {[%clk 0:02:57.5]}
8... O-O {[%clk 0:02:37.2]} 9. Qd3 {[%clk 0:02:54.5]} 9... Be6 {[%clk 0:02:26]}
10. Nd5 {[%clk 0:02:52.8]} 10... Bxd5 {[%clk 0:02:20.8]} 11. exd5 {[%clk
0:02:51.8]} 11... Nbd7 {[%clk 0:02:20.1]} 12. c4 {[%clk 0:02:50.5]} 12... Rc8
{[%clk 0:02:18.4]} 13. Be3 {[%clk 0:02:44.5]} 13... e4 {[%clk 0:01:49.3]} 14.
Qd2 {[%clk 0:02:37]} 14... Ne5 {[%clk 0:01:47.7]} 15. Rac1 {[%clk 0:02:19.9]}
15... Nfd7 {[%clk 0:01:42.7]} 16. Na5 {[%clk 0:02:16.8]} 16... b6 {[%clk
0:01:34.9]} 17. Nb3 {[%clk 0:02:13.6]} 17... f5 {[%clk 0:01:30.4]} 18. f4 {[%clk
0:02:10]} 18... Ng6 {[%clk 0:01:13.4]} 19. Nd4 {[%clk 0:02:08.7]} 19... Nc5
{[%clk 0:01:10.5]} 20. b4 {[%clk 0:02:05.2]} 20... Bf6 {[%clk 0:00:59.4]} 21.
bxc5 {[%clk 0:02:02.5]} 21... Bxd4 {[%clk 0:00:58.2]} 22. Bxd4 {[%clk
0:01:55.2]} 22... bxc5 {[%clk 0:00:58.3]} 23. Be3 {[%clk 0:01:54.8]} 23... Rb8
{[%clk 0:00:58.3]} 24. Rb1 {[%clk 0:01:54.5]} 24... Qd7 {[%clk 0:00:55.4]} 25.
Qa5 {[%clk 0:01:52.8]} 25... Qa7 {[%clk 0:00:47.8]} 26. Rb5 {[%clk 0:01:46.7]}
26... Qa8 {[%clk 0:00:39.4]} 27. Rb3 {[%clk 0:01:42.2]} 27... Rb7 {[%clk
0:00:20.4]} 28. Rfb1 {[%clk 0:01:40.9]} 28... Rfb8 {[%clk 0:00:19.4]} 29. g4
{[%clk 0:01:37.7]} 29... fxg4 {[%clk 0:00:17.9]} 30. Bxg4 {[%clk 0:01:36.2]}
30... Rxb3 {[%clk 0:00:18.1]} 31. Rxb3 {[%clk 0:01:33.1]} 31... Rxb3 {[%clk
0:00:18.1]} 32. Be6+ {[%clk 0:01:32.1]} 32... Kh8 {[%clk 0:00:16.8]} 33. axb3
{[%clk 0:01:33]} 33... Nf8 {[%clk 0:00:15.8]} 34. Qc7 {[%clk 0:01:25.6]} 34...
Nxe6 {[%clk 0:00:12.3]} 35. dxe6 {[%clk 0:01:25.5]} 35... Qe8 {[%clk 0:00:12.9]}
36. Qf7 {[%clk 0:01:23.3]} 36... Qxf7 {[%clk 0:00:09]} 37. exf7 {[%clk 0:01:23]}
1-0

[Event "Late-Titled-Tuesday-Blitz-September-19-2023"]
[Site "Chess.com"]
[Date "2023.09.19"]
[Round "6"]
[White "Maksimus1998"]
[Black "PapaieDudu"]
[Result "0-1"]
[WhiteElo "2564"]
[BlackElo "2389"]
[TimeControl "180+1"]
[EndTime "15:03:19 PDT"]
[Termination "PapaieDudu won by resignation"]

1. b3 {[%clk 0:03:00.9]} 1... d5 {[%clk 0:02:58.5]} 2. Bb2 {[%clk 0:03:01.5]}
2... Nf6 {[%clk 0:02:56.4]} 3. Nf3 {[%clk 0:03:01.9]} 3... c5 {[%clk 0:02:56.4]}
4. g3 {[%clk 0:03:02.4]} 4... Nc6 {[%clk 0:02:56.5]} 5. Bg2 {[%clk 0:03:02.7]}
5... Bf5 {[%clk 0:02:56]} 6. Ne5 {[%clk 0:03:02.4]} 6... Rc8 {[%clk 0:02:54]} 7.
O-O {[%clk 0:03:01.9]} 7... e6 {[%clk 0:02:54.3]} 8. e3 {[%clk 0:03:01.6]} 8...
d4 {[%clk 0:02:52.2]} 9. Nxc6 {[%clk 0:03:01.2]} 9... bxc6 {[%clk 0:02:52.3]}
10. Na3 {[%clk 0:02:59.4]} 10... Be7 {[%clk 0:02:51.4]} 11. Nc4 {[%clk
0:02:59.3]} 11... Be4 {[%clk 0:02:50.5]} 12. d3 {[%clk 0:02:58.5]} 12... Bxg2
{[%clk 0:02:46]} 13. Kxg2 {[%clk 0:02:59.4]} 13... h5 {[%clk 0:02:35.8]} 14. e4
{[%clk 0:02:57.1]} 14... h4 {[%clk 0:02:35.4]} 15. Bc1 {[%clk 0:02:56.2]} 15...
h3+ {[%clk 0:02:31.3]} 16. Kg1 {[%clk 0:02:56]} 16... Nd7 {[%clk 0:02:31.8]} 17.
f4 {[%clk 0:02:55.2]} 17... Bf6 {[%clk 0:02:29.1]} 18. e5 {[%clk 0:02:54.3]}
18... Be7 {[%clk 0:02:29.2]} 19. a4 {[%clk 0:02:52.7]} 19... Nb6 {[%clk
0:02:29]} 20. Qg4 {[%clk 0:02:50.1]} 20... g6 {[%clk 0:02:27.9]} 21. Nxb6 {[%clk
0:02:44.1]} 21... axb6 {[%clk 0:02:08.9]} 22. Bd2 {[%clk 0:02:44.7]} 22... Ra8
{[%clk 0:01:59.4]} 23. Rfb1 {[%clk 0:02:42.4]} 23... Kf8 {[%clk 0:01:50.5]} 24.
b4 {[%clk 0:02:39.8]} 24... cxb4 {[%clk 0:01:01.3]} 25. Bxb4 {[%clk 0:02:40.7]}
25... c5 {[%clk 0:01:01.9]} 26. Bd2 {[%clk 0:02:38.5]} 26... Kg7 {[%clk
0:01:01.7]} 27. Qe2 {[%clk 0:02:36.5]} 27... Ra6 {[%clk 0:00:55.2]} 28. Qe4
{[%clk 0:02:36]} 28... Qd7 {[%clk 0:00:54.4]} 29. a5 {[%clk 0:02:34.6]} 29... b5
{[%clk 0:00:52.7]} 30. Rf1 {[%clk 0:02:32.4]} 30... c4 {[%clk 0:00:51.1]} 31.
Rfb1 {[%clk 0:02:25.7]} 31... c3 {[%clk 0:00:39.6]} 32. Be1 {[%clk 0:02:25.4]}
32... b4 {[%clk 0:00:40.3]} 33. Bf2 {[%clk 0:02:25]} 33... Bc5 {[%clk
0:00:39.1]} 34. Qf3 {[%clk 0:01:57]} 34... Rha8 {[%clk 0:00:37.1]} 35. Qg4
{[%clk 0:01:56.9]} 35... Rxa5 {[%clk 0:00:36.6]} 36. Rxa5 {[%clk 0:01:56.4]}
36... Rxa5 {[%clk 0:00:37.5]} 37. Qxh3 {[%clk 0:01:56.1]} 37... Ra2 {[%clk
0:00:31.8]} 38. Rc1 {[%clk 0:01:54.9]} 38... b3 {[%clk 0:00:24.6]} 39. cxb3
{[%clk 0:01:54.6]} 39... Ba3 {[%clk 0:00:24.4]} 40. Qf1 {[%clk 0:01:45.7]} 40...
Bxc1 {[%clk 0:00:17.6]} 41. Qxc1 {[%clk 0:01:46.6]} 41... Qa7 {[%clk 0:00:13.7]}
42. Kg2 {[%clk 0:01:46]} 42... Qb7+ {[%clk 0:00:08.9]} 43. Kg1 {[%clk
0:01:45.2]} 43... Qa7 {[%clk 0:00:09.1]} 44. Kg2 {[%clk 0:01:45]} 44... Qa8+
{[%clk 0:00:09.7]} 45. Kg1 {[%clk 0:01:45.1]} 45... Ra1 {[%clk 0:00:09.2]} 0-1

[Event "Late-Titled-Tuesday-Blitz-September-19-2023"]
[Site "Chess.com"]
[Date "2023.09.19"]
[Round "6"]
[White "Lennis93"]
[Black "YEIKO2017"]
[Result "1-0"]
[WhiteElo "2743"]
[BlackElo "2475"]
[TimeControl "180+1"]
[EndTime "15:03:25 PDT"]
[Termination "Lennis93 won by resignation"]

1. b3 {[%clk 0:03:00.9]} 1... Nf6 {[%clk 0:02:58.9]} 2. Bb2 {[%clk 0:03:01.5]}
2... g6 {[%clk 0:02:59.6]} 3. Bxf6 {[%clk 0:03:00.8]} 3... exf6 {[%clk
0:03:00.5]} 4. c4 {[%clk 0:03:01.1]} 4... d5 {[%clk 0:02:59.6]} 5. cxd5 {[%clk
0:02:58.2]} 5... Qxd5 {[%clk 0:03:00.5]} 6. Nc3 {[%clk 0:02:58.4]} 6... Qa5
{[%clk 0:03:00.3]} 7. g3 {[%clk 0:02:55.2]} 7... f5 {[%clk 0:02:59.6]} 8. Bg2
{[%clk 0:02:54.9]} 8... c6 {[%clk 0:02:58.6]} 9. e3 {[%clk 0:02:53.7]} 9... Bg7
{[%clk 0:02:58]} 10. Nge2 {[%clk 0:02:53.6]} 10... O-O {[%clk 0:02:57.9]} 11.
O-O {[%clk 0:02:53.1]} 11... Nd7 {[%clk 0:02:58.3]} 12. d4 {[%clk 0:02:52.5]}
12... Nf6 {[%clk 0:02:55.9]} 13. Qc2 {[%clk 0:02:51.9]} 13... Be6 {[%clk
0:02:48.9]} 14. a3 {[%clk 0:02:47.3]} 14... Nd5 {[%clk 0:02:39]} 15. b4 {[%clk
0:02:46.4]} 15... Qd8 {[%clk 0:02:39.5]} 16. Rfd1 {[%clk 0:02:43.9]} 16... a5
{[%clk 0:02:05]} 17. Nxd5 {[%clk 0:02:39.1]} 17... Bxd5 {[%clk 0:02:03.9]} 18.
Bxd5 {[%clk 0:02:38.9]} 18... Qxd5 {[%clk 0:02:03.8]} 19. Nf4 {[%clk 0:02:38.8]}
19... Qe4 {[%clk 0:01:58.1]} 20. Qxe4 {[%clk 0:02:34.7]} 20... fxe4 {[%clk
0:01:59]} 21. b5 {[%clk 0:02:28.8]} 21... c5 {[%clk 0:01:47.5]} 22. Rac1 {[%clk
0:02:14.9]} 22... cxd4 {[%clk 0:01:44.2]} 23. exd4 {[%clk 0:02:15.8]} 23... Rac8
{[%clk 0:01:37]} 24. Rc5 {[%clk 0:01:57.7]} 24... Rxc5 {[%clk 0:01:16.8]} 25.
dxc5 {[%clk 0:01:57.4]} 25... Rc8 {[%clk 0:01:17.6]} 26. c6 {[%clk 0:00:59.8]}
26... bxc6 {[%clk 0:01:15.5]} 27. Rc1 {[%clk 0:00:59.9]} 27... c5 {[%clk
0:01:02.6]} 28. Nd5 {[%clk 0:00:59.6]} 28... Kf8 {[%clk 0:01:02.5]} 29. a4
{[%clk 0:00:54.3]} 29... c4 {[%clk 0:01:02.1]} 30. Nb6 {[%clk 0:00:51.4]} 30...
Rc5 {[%clk 0:00:37.5]} 31. Rxc4 {[%clk 0:00:50.8]} 31... Rxc4 {[%clk 0:00:37]}
32. Nxc4 {[%clk 0:00:51.7]} 32... Bc3 {[%clk 0:00:37]} 33. b6 {[%clk 0:00:49]}
1-0

[Event "Late-Titled-Tuesday-Blitz-September-19-2023"]
[Site "Chess.com"]
[Date "2023.09.19"]
[Round "6"]
[White "SantoBlue"]
[Black "Msb2"]
[Result "0-1"]
[WhiteElo "2952"]
[BlackElo "3105"]
[TimeControl "180+1"]
[EndTime "15:03:45 PDT"]
[Termination "Msb2 won by resignation"]

1. e4 {[%clk 0:02:58.4]} 1... e6 {[%clk 0:03:00]} 2. d4 {[%clk 0:02:58.7]} 2...
d5 {[%clk 0:03:00.3]} 3. e5 {[%clk 0:02:57.1]} 3... c5 {[%clk 0:03:00.5]} 4. c3
{[%clk 0:02:57.4]} 4... Nc6 {[%clk 0:03:01.3]} 5. Nf3 {[%clk 0:02:56.8]} 5...
Nge7 {[%clk 0:03:02.1]} 6. Bd3 {[%clk 0:02:54.5]} 6... cxd4 {[%clk 0:03:02.5]}
7. cxd4 {[%clk 0:02:52.9]} 7... Nf5 {[%clk 0:03:03.1]} 8. Bxf5 {[%clk
0:02:51.7]} 8... exf5 {[%clk 0:03:04]} 9. O-O {[%clk 0:02:51.8]} 9... Be7 {[%clk
0:03:04.3]} 10. Nc3 {[%clk 0:02:52.3]} 10... Be6 {[%clk 0:03:04.9]} 11. Ne2
{[%clk 0:02:50.3]} 11... g5 {[%clk 0:03:03.5]} 12. Ne1 {[%clk 0:02:46.2]} 12...
f4 {[%clk 0:03:02.9]} 13. Bd2 {[%clk 0:02:38.1]} 13... Qb6 {[%clk 0:02:47.7]}
14. Bc3 {[%clk 0:02:36.7]} 14... O-O {[%clk 0:02:42.4]} 15. Kh1 {[%clk
0:02:27.8]} 15... f6 {[%clk 0:02:41.7]} 16. exf6 {[%clk 0:02:14.7]} 16... Bxf6
{[%clk 0:02:42.6]} 17. f3 {[%clk 0:02:13.9]} 17... Bf5 {[%clk 0:02:40.7]} 18.
Nd3 {[%clk 0:02:05.6]} 18... Rae8 {[%clk 0:02:40.2]} 19. Nf2 {[%clk 0:02:00.1]}
19... Re6 {[%clk 0:02:36.5]} 20. Qd2 {[%clk 0:01:51.7]} 20... Rfe8 {[%clk
0:02:36.5]} 21. Rae1 {[%clk 0:01:52.3]} 21... Qb5 {[%clk 0:02:32.5]} 22. Ng1
{[%clk 0:01:45.8]} 22... Re3 {[%clk 0:02:25.4]} 23. Ng4 {[%clk 0:01:42.1]} 23...
Bxg4 {[%clk 0:02:11.2]} 24. fxg4 {[%clk 0:01:43]} 24... Nxd4 {[%clk 0:02:11.8]}
25. Bxd4 {[%clk 0:01:37]} 25... Bxd4 {[%clk 0:02:10.7]} 26. Nf3 {[%clk
0:01:33.2]} 26... Bf6 {[%clk 0:01:52.4]} 27. a4 {[%clk 0:01:28.4]} 27... Rxe1
{[%clk 0:01:37.8]} 28. Rxe1 {[%clk 0:01:28.1]} 28... Rxe1+ {[%clk 0:01:31.2]}
29. Qxe1 {[%clk 0:01:29]} 29... Qd7 {[%clk 0:01:31.7]} 30. Qd1 {[%clk
0:01:02.5]} 30... Kg7 {[%clk 0:01:29.7]} 31. h3 {[%clk 0:01:02.3]} 31... d4
{[%clk 0:01:28.5]} 32. Ne1 {[%clk 0:01:02]} 32... Qe6 {[%clk 0:01:22.1]} 33. Nd3
{[%clk 0:01:01.8]} 33... Qe3 {[%clk 0:01:21.6]} 34. b4 {[%clk 0:00:59.8]} 34...
Be7 {[%clk 0:01:19.5]} 35. Qc2 {[%clk 0:00:56.2]} 35... f3 {[%clk 0:01:17.9]}
36. Qc7 {[%clk 0:00:39.7]} 36... Kh6 {[%clk 0:01:14.3]} 37. gxf3 {[%clk
0:00:13.7]} 37... Qxf3+ {[%clk 0:01:15.2]} 38. Kg1 {[%clk 0:00:14.3]} 38... Qxd3
{[%clk 0:01:12.4]} 39. Qxe7 {[%clk 0:00:09.9]} 39... Qg3+ {[%clk 0:01:11.6]} 40.
Kf1 {[%clk 0:00:10.6]} 40... Qxh3+ {[%clk 0:01:12.5]} 41. Ke1 {[%clk 0:00:09.3]}
41... Qe3+ {[%clk 0:01:10.6]} 42. Qxe3 {[%clk 0:00:08.6]} 42... dxe3 {[%clk
0:01:11.5]} 43. Ke2 {[%clk 0:00:08.7]} 43... Kg6 {[%clk 0:01:12.2]} 44. Kxe3
{[%clk 0:00:09.3]} 44... h5 {[%clk 0:01:13.1]} 0-1

[Event "Late-Titled-Tuesday-Blitz-September-19-2023"]
[Site "Chess.com"]
[Date "2023.09.19"]
[Round "6"]
[White "RCone"]
[Black "Chempiblinka"]
[Result "1-0"]
[WhiteElo "2449"]
[BlackElo "2248"]
[TimeControl "180+1"]
[EndTime "15:03:49 PDT"]
[Termination "RCone won on time"]

1. e4 {[%clk 0:03:00.9]} 1... c5 {[%clk 0:02:59.2]} 2. Nc3 {[%clk 0:02:59.1]}
2... a6 {[%clk 0:02:58.7]} 3. g3 {[%clk 0:02:58.8]} 3... b5 {[%clk 0:02:58.9]}
4. Bg2 {[%clk 0:02:59.4]} 4... Bb7 {[%clk 0:02:59.5]} 5. d3 {[%clk 0:02:59.2]}
5... e6 {[%clk 0:02:59.7]} 6. f4 {[%clk 0:02:59.3]} 6... Nf6 {[%clk 0:02:56.9]}
7. Nf3 {[%clk 0:02:53.1]} 7... d5 {[%clk 0:02:56.7]} 8. e5 {[%clk 0:02:51.9]}
8... Nfd7 {[%clk 0:02:53.8]} 9. O-O {[%clk 0:02:37.4]} 9... Nc6 {[%clk
0:02:53.2]} 10. f5 {[%clk 0:02:17.8]} 10... Ndxe5 {[%clk 0:02:45.5]} 11. fxe6
{[%clk 0:02:14.2]} 11... fxe6 {[%clk 0:02:40.3]} 12. Ng5 {[%clk 0:02:03.1]}
12... Qe7 {[%clk 0:02:18.4]} 13. Bh3 {[%clk 0:02:02.8]} 13... Bc8 {[%clk
0:01:44.5]} 14. Bf4 {[%clk 0:01:28.4]} 14... h6 {[%clk 0:01:40.7]} 15. Bxe5
{[%clk 0:01:25.1]} 15... Nxe5 {[%clk 0:01:39.5]} 16. Nf3 {[%clk 0:01:07]} 16...
Nxf3+ {[%clk 0:01:38.3]} 17. Qxf3 {[%clk 0:01:07.9]} 17... Ra7 {[%clk
0:00:22.1]} 18. Nxd5 {[%clk 0:00:54.4]} 18... Qb7 {[%clk 0:00:16.9]} 19. Rae1
{[%clk 0:00:52.3]} 19... Kd8 {[%clk 0:00:12.2]} 20. Bxe6 {[%clk 0:00:50.9]}
20... Bxe6 {[%clk 0:00:12.1]} 21. Rxe6 {[%clk 0:00:51.1]} 21... Qd7 {[%clk
0:00:03.5]} 22. Rfe1 {[%clk 0:00:45.3]} 22... Bd6 {[%clk 0:00:02.1]} 23. Nb6
{[%clk 0:00:39.5]} 23... Qc7 {[%clk 0:00:02.1]} 24. Qd5 {[%clk 0:00:30.3]} 24...
c4 {[%clk 0:00:02.2]} 25. Rxd6+ {[%clk 0:00:30.1]} 1-0

[Event "Late-Titled-Tuesday-Blitz-September-19-2023"]
[Site "Chess.com"]
[Date "2023.09.19"]
[Round "6"]
[White "jinxy2009"]
[Black "Mimsychess"]
[Result "1-0"]
[WhiteElo "2315"]
[BlackElo "2354"]
[TimeControl "180+1"]
[EndTime "15:03:54 PDT"]
[Termination "jinxy2009 won on time"]

1. e4 {[%clk 0:03:00.9]} 1... c5 {[%clk 0:02:56.8]} 2. Nf3 {[%clk 0:03:00.1]}
2... e6 {[%clk 0:02:52.1]} 3. d4 {[%clk 0:02:58.7]} 3... cxd4 {[%clk 0:02:50]}
4. Nxd4 {[%clk 0:02:58.5]} 4... Nf6 {[%clk 0:02:46]} 5. Nc3 {[%clk 0:02:58.1]}
5... Nc6 {[%clk 0:02:43.8]} 6. Ndb5 {[%clk 0:02:57.8]} 6... Bc5 {[%clk
0:02:40.1]} 7. Bf4 {[%clk 0:02:55.7]} 7... O-O {[%clk 0:02:34.1]} 8. Bc7 {[%clk
0:02:55.4]} 8... Qe7 {[%clk 0:02:31]} 9. Bd6 {[%clk 0:02:55.2]} 9... Bxd6 {[%clk
0:02:28.5]} 10. Qxd6 {[%clk 0:02:56.1]} 10... Qd8 {[%clk 0:02:24.4]} 11. O-O-O
{[%clk 0:02:56]} 11... a6 {[%clk 0:02:13.2]} 12. Nd4 {[%clk 0:02:55.5]} 12...
Nxd4 {[%clk 0:01:59.1]} 13. Qxd4 {[%clk 0:02:45.5]} 13... b5 {[%clk 0:01:54.5]}
14. e5 {[%clk 0:02:43.7]} 14... Ne8 {[%clk 0:01:50.7]} 15. Bd3 {[%clk
0:02:33.9]} 15... Bb7 {[%clk 0:01:46.7]} 16. Ne4 {[%clk 0:02:20.5]} 16... f5
{[%clk 0:01:33.9]} 17. Nd6 {[%clk 0:02:15.1]} 17... Bd5 {[%clk 0:01:09.1]} 18.
Nxe8 {[%clk 0:01:58.9]} 18... Rxe8 {[%clk 0:01:01.9]} 19. Kb1 {[%clk 0:01:56.2]}
19... Qa5 {[%clk 0:00:53.4]} 20. b3 {[%clk 0:01:51.8]} 20... Rf8 {[%clk
0:00:39.6]} 21. Rhg1 {[%clk 0:01:47.6]} 21... Rac8 {[%clk 0:00:39.2]} 22. h3
{[%clk 0:01:39.3]} 22... Qc3 {[%clk 0:00:35.1]} 23. Qxc3 {[%clk 0:01:37.8]}
23... Rxc3 {[%clk 0:00:35.3]} 24. Kb2 {[%clk 0:01:38.7]} 24... Rc5 {[%clk
0:00:33.6]} 25. f4 {[%clk 0:01:36.4]} 25... a5 {[%clk 0:00:26.2]} 26. Rdf1
{[%clk 0:01:34.2]} 26... b4 {[%clk 0:00:14.7]} 27. g4 {[%clk 0:01:33]} 27... g6
{[%clk 0:00:11.8]} 28. gxf5 {[%clk 0:01:32.7]} 28... exf5 {[%clk 0:00:11.9]} 29.
Rd1 {[%clk 0:01:20.3]} 29... Rfc8 {[%clk 0:00:10.2]} 30. Rd2 {[%clk 0:01:20.7]}
30... Kf7 {[%clk 0:00:08.8]} 31. h4 {[%clk 0:01:17.5]} 31... Be6 {[%clk
0:00:08.8]} 32. Rgd1 {[%clk 0:01:15.1]} 32... a4 {[%clk 0:00:04.8]} 33. bxa4
{[%clk 0:01:07.8]} 33... Rc3 {[%clk 0:00:03.4]} 34. Bb5 {[%clk 0:01:02.3]} 34...
Ra3 {[%clk 0:00:03.6]} 35. Bxd7 {[%clk 0:01:02.1]} 1-0

[Event "Late-Titled-Tuesday-Blitz-September-19-2023"]
[Site "Chess.com"]
[Date "2023.09.19"]
[Round "6"]
[White "MFatigue"]
[Black "Jarming"]
[Result "0-1"]
[WhiteElo "2559"]
[BlackElo "2735"]
[TimeControl "180+1"]
[EndTime "15:04:06 PDT"]
[Termination "Jarming won by resignation"]

1. e4 {[%clk 0:03:00.9]} 1... c5 {[%clk 0:02:58.8]} 2. a3 {[%clk 0:02:59.1]}
2... d6 {[%clk 0:02:57.5]} 3. b4 {[%clk 0:02:59.5]} 3... Nf6 {[%clk 0:02:57.3]}
4. Nc3 {[%clk 0:02:59.3]} 4... g6 {[%clk 0:02:55.1]} 5. Nf3 {[%clk 0:02:55.5]}
5... Bg7 {[%clk 0:02:54.1]} 6. d4 {[%clk 0:02:56.2]} 6... cxd4 {[%clk
0:02:53.2]} 7. Nxd4 {[%clk 0:02:57.1]} 7... O-O {[%clk 0:02:49.6]} 8. Bb2 {[%clk
0:02:56.6]} 8... b6 {[%clk 0:02:48.5]} 9. Be2 {[%clk 0:02:55.6]} 9... Bb7 {[%clk
0:02:48.7]} 10. Bf3 {[%clk 0:02:55.7]} 10... Nbd7 {[%clk 0:02:45]} 11. O-O
{[%clk 0:02:47.3]} 11... Rc8 {[%clk 0:02:43]} 12. Nd5 {[%clk 0:02:45.8]} 12...
Ne5 {[%clk 0:02:39.3]} 13. Re1 {[%clk 0:02:31.6]} 13... Nfd7 {[%clk 0:02:31.3]}
14. Be2 {[%clk 0:02:24.5]} 14... Nc4 {[%clk 0:02:29.1]} 15. Bxc4 {[%clk
0:02:22.9]} 15... Rxc4 {[%clk 0:02:29]} 16. Ne3 {[%clk 0:02:17.5]} 16... Rc8
{[%clk 0:02:25.9]} 17. f3 {[%clk 0:02:18]} 17... Ne5 {[%clk 0:02:20.6]} 18. Qe2
{[%clk 0:02:11]} 18... a6 {[%clk 0:02:08.7]} 19. c4 {[%clk 0:02:07.2]} 19... e6
{[%clk 0:02:05]} 20. Rac1 {[%clk 0:02:07.3]} 20... Re8 {[%clk 0:02:04.2]} 21.
Nb3 {[%clk 0:02:02.8]} 21... Qg5 {[%clk 0:01:44.4]} 22. Rcd1 {[%clk 0:01:52.5]}
22... Red8 {[%clk 0:01:27.4]} 23. Rf1 {[%clk 0:01:44.5]} 23... Qh5 {[%clk
0:01:26.9]} 24. g4 {[%clk 0:01:26.1]} 24... Qh3 {[%clk 0:01:21.8]} 25. f4 {[%clk
0:01:23.4]} 25... Nxg4 {[%clk 0:01:14.1]} 26. Nxg4 {[%clk 0:00:34.3]} 26... Bxb2
{[%clk 0:01:11.6]} 27. Rd3 {[%clk 0:00:32.2]} 27... Qh4 {[%clk 0:01:05.1]} 28.
Rg3 {[%clk 0:00:15.7]} 28... Bg7 {[%clk 0:00:58.1]} 29. f5 {[%clk 0:00:16]}
29... exf5 {[%clk 0:00:57.9]} 30. exf5 {[%clk 0:00:16.9]} 30... Re8 {[%clk
0:00:57.6]} 31. Qd2 {[%clk 0:00:08.7]} 31... Rxc4 {[%clk 0:00:52.3]} 32. Ne3
{[%clk 0:00:08.6]} 32... Rc3 {[%clk 0:00:39.7]} 33. fxg6 {[%clk 0:00:07.6]}
33... hxg6 {[%clk 0:00:40.4]} 34. Nc1 {[%clk 0:00:03.7]} 34... Rcxe3 {[%clk
0:00:34.8]} 35. Rxe3 {[%clk 0:00:03.2]} 35... Qg5+ {[%clk 0:00:35]} 0-1

[Event "Late-Titled-Tuesday-Blitz-September-19-2023"]
[Site "Chess.com"]
[Date "2023.09.19"]
[Round "6"]
[White "AEMEffi"]
[Black "Danishcrown"]
[Result "1-0"]
[WhiteElo "2325"]
[BlackElo "2111"]
[TimeControl "180+1"]
[EndTime "15:04:12 PDT"]
[Termination "AEMEffi won by resignation"]

1. d4 {[%clk 0:02:56.4]} 1... Nf6 {[%clk 0:02:57.8]} 2. c4 {[%clk 0:02:56.9]}
2... e6 {[%clk 0:02:58.1]} 3. g3 {[%clk 0:02:56]} 3... d5 {[%clk 0:02:54.6]} 4.
Nf3 {[%clk 0:02:56]} 4... Bb4+ {[%clk 0:02:54.4]} 5. Bd2 {[%clk 0:02:55]} 5...
Be7 {[%clk 0:02:54.5]} 6. Bg2 {[%clk 0:02:54.6]} 6... O-O {[%clk 0:02:53.2]} 7.
O-O {[%clk 0:02:55.1]} 7... dxc4 {[%clk 0:02:51.6]} 8. Qc2 {[%clk 0:02:55.2]}
8... c5 {[%clk 0:02:50.9]} 9. dxc5 {[%clk 0:02:52.3]} 9... Nbd7 {[%clk
0:02:43.4]} 10. Qxc4 {[%clk 0:02:43.8]} 10... Bxc5 {[%clk 0:02:41.9]} 11. Nc3
{[%clk 0:02:38.1]} 11... a6 {[%clk 0:02:41]} 12. b4 {[%clk 0:02:31.1]} 12... b5
{[%clk 0:02:40]} 13. Qb3 {[%clk 0:02:30.6]} 13... Ba7 {[%clk 0:02:36.3]} 14.
Rad1 {[%clk 0:02:04.4]} 14... Bb7 {[%clk 0:02:28.5]} 15. Bg5 {[%clk 0:01:59.1]}
15... Qc7 {[%clk 0:02:02.7]} 16. Rc1 {[%clk 0:01:50.4]} 16... Rac8 {[%clk
0:01:52.3]} 17. Nxb5 {[%clk 0:01:42.2]} 17... Qb8 {[%clk 0:01:17.4]} 18. Nxa7
{[%clk 0:01:21.4]} 18... Rxc1 {[%clk 0:01:02]} 19. Bxc1 {[%clk 0:01:18.6]} 19...
Qxa7 {[%clk 0:00:59.4]} 20. Bb2 {[%clk 0:01:17]} 20... Bd5 {[%clk 0:00:58.3]}
21. Qa3 {[%clk 0:01:03.3]} 21... Qb7 {[%clk 0:00:55.1]} 22. Rc1 {[%clk
0:00:56.1]} 22... Rb8 {[%clk 0:00:54.4]} 23. Ne1 {[%clk 0:00:38.3]} 23... Bxg2
{[%clk 0:00:45.8]} 24. Nxg2 {[%clk 0:00:39.2]} 24... Qxb4 {[%clk 0:00:43.7]} 25.
Qxb4 {[%clk 0:00:40.1]} 25... Rxb4 {[%clk 0:00:43.2]} 26. Rc8+ {[%clk
0:00:39.2]} 26... Nf8 {[%clk 0:00:39.8]} 27. Rc2 {[%clk 0:00:22.5]} 27... Rb8
{[%clk 0:00:28]} 28. f3 {[%clk 0:00:21.8]} 28... Nd5 {[%clk 0:00:27.5]} 29. e4
{[%clk 0:00:20.8]} 29... Nb4 {[%clk 0:00:27.2]} 30. Rd2 {[%clk 0:00:20.7]} 30...
a5 {[%clk 0:00:26.6]} 31. a3 {[%clk 0:00:20.2]} 31... Nc6 {[%clk 0:00:25.9]} 32.
Ne3 {[%clk 0:00:20.1]} 32... Ng6 {[%clk 0:00:23.5]} 33. Nc4 {[%clk 0:00:19.7]}
33... Nge5 {[%clk 0:00:23.1]} 34. Nxe5 {[%clk 0:00:18.6]} 34... Nxe5 {[%clk
0:00:23.7]} 35. Bxe5 {[%clk 0:00:18.5]} 1-0